bitfinex-derivatives/quotes_SOLF0:USTF0_20250310
["timestamp","ask_amount","ask_price","bid_price","bid_amount"]
[1741610008881,0.05773663,128.46,128.42,31.23347415]
[1741610009081,0.05773663,128.46,128.45,7.7841]
[1741610009780,0.05773663,128.46,128.44,7.7846]
[1741610009982,0.05773663,128.46,128.4,287.63347415]
[1741610010176,0.05773663,128.46,128.41,1.41700197]
[1741610010373,0.05773663,128.46,128.42,62.0]
[1741610010579,0.05773663,128.46,128.43,7.7851]
[1741610011477,0.05773663,128.46,128.42,62.0]
[1741610011983,0.05773663,128.46,128.45,7.7841]
[1741610013078,2.1354,128.53,128.44,31.28289892]
[1741610013283,2.1354,128.53,128.44,31.23347415]
[1741610013475,2.1354,128.53,128.47,7.7826]
[1741610013880,7.7809,128.51,128.44,31.23347415]
[1741610014084,7.83829467,128.51,128.49,0.05521889]
[1741610014483,0.05739467,128.51,128.49,0.05724422]
[1741610015077,0.05739467,128.51,128.5,7.7811]
[1741610015282,0.05739467,128.51,128.49,0.05724422]
[1741610016376,0.05739467,128.51,128.5,7.7811]
[1741610016888,7.7771,128.57,128.54,7.7782]
[1741610017088,3.9497,128.58,128.48,31.23347415]
[1741610017282,3.9497,128.58,128.49,1.41613639]
[1741610017481,2.0094,128.58,128.49,1.41613639]
[1741610017681,2.0094,128.58,128.48,31.23347415]
[1741610017985,0.05707306,128.55,128.52,0.05531257]
[1741610018690,0.05707306,128.55,128.54,7.7787]
[1741610019886,0.05707306,128.55,128.52,0.05531257]
[1741610020084,0.05707306,128.55,128.53,62.0]
[1741610020282,0.05707306,128.55,128.52,0.05531257]
[1741610020888,7.7793,128.53,128.52,0.05531257]
[1741610022183,0.05707306,128.55,128.47,7.7827]
[1741610022484,31.23347415,128.54,128.43,35.21417415]
[1741610022688,31.23347415,128.54,128.45,7.7837]
[1741610022887,2.1373,128.53,128.43,3.9807]
[1741610023086,2.1373,128.53,128.44,7.7844]
[1741610023389,7.7832,128.47,128.43,65.9807]
[1741610023786,7.7832,128.47,128.44,0.05377897]
[1741610023992,0.05326138,128.46,128.44,0.05377897]
[1741610024991,0.05326138,128.46,128.45,7.7841]
[1741610025179,0.05326138,128.46,128.44,0.05377897]
[1741610027983,0.05326138,128.46,128.44,7.83847897]
[1741610028692,0.05326138,128.46,128.44,0.05377897]
[1741610028892,7.83676138,128.46,128.44,0.05377897]
[1741610029081,0.05326138,128.46,128.44,0.05377897]
[1741610029281,7.7841,128.45,128.44,0.05377897]
[1741610030294,7.7848,128.44,128.39,4.0602]
[1741610030492,33.30057415,128.49,128.39,2.1212]
[1741610031087,33.30057415,128.49,128.36,2.0905]
[1741610031292,33.30057415,128.49,128.41,7.7861]
[1741610031492,0.04905313,128.44,128.36,4.1738]
[1741610031705,33.30057415,128.49,128.37,1.41734327]
[1741610031997,7.7842,128.45,128.42,7.7857]
[1741610032198,0.05801678,128.44,128.36,4.1738]
[1741610032388,33.30057415,128.49,128.37,1.41728507]
[1741610032590,33.30057415,128.49,128.42,7.7856]
[1741610032898,0.05462079,128.44,128.37,31.23347415]
[1741610033096,33.30057415,128.49,128.38,63.4172441]
[1741610033299,5.35e-05,128.42,128.4,31.23347415]
[1741610033493,2.0671,128.49,128.4,31.23347415]
[1741610034201,7.7835,128.47,128.42,7.7857]
[1741610034396,7.7835,128.47,128.4,31.23347415]
[1741610034603,0.05567177,128.46,128.43,0.05614162]
[1741610035889,0.05567177,128.46,128.44,7.7844]
[1741610036094,0.05567177,128.46,128.43,0.05614162]
[1741610036698,0.05567177,128.46,128.45,7.7841]
[1741610037203,0.05567177,128.46,128.43,0.05614162]
[1741610037800,7.83947177,128.46,128.43,7.84134162]
[1741610038300,7.7844,128.45,128.43,0.05614162]
[1741610038693,0.05567177,128.46,128.43,0.05614162]
[1741610038895,0.05567177,128.46,128.44,7.7844]
[1741610039098,0.05567177,128.46,128.43,0.05614162]
[1741610039501,7.83937177,128.46,128.43,7.84104162]
[1741610039700,0.05567177,128.46,128.43,0.05614162]
[1741610040304,7.83937177,128.46,128.43,0.05614162]
[1741610040501,0.05567177,128.46,128.43,0.05614162]
[1741610040896,7.7848,128.44,128.43,0.05614162]
[1741610041099,0.05567177,128.46,128.43,0.05614162]
[1741610041403,6.22386428,128.45,128.43,7.84124162]
[1741610041806,0.05567177,128.46,128.44,7.7842]
[1741610042003,31.28914592,128.46,128.3,15.5857]
[1741610042202,19.65144633,128.43,128.34,19.65144633]
[1741610042411,7.7875,128.4,128.37,7.7886]
[1741610042600,19.65144633,128.41,128.31,19.65144633]
[1741610042805,19.65144633,128.41,128.33,19.65144633]
[1741610043107,6.2303739,128.42,128.35,19.65144633]
[1741610043305,0.05630559,128.38,128.36,1.41757362]
[1741610043508,7.788,128.39,128.33,19.65144633]
[1741610043805,0.05207757,128.38,128.31,21.72834633]
[1741610044005,7.84077757,128.38,128.33,7.791]
[1741610044213,0.05207757,128.38,128.32,2.0769]
[1741610044407,0.05207757,128.38,128.33,1.41785517]
[1741610044607,7.84107757,128.38,128.33,7.7911]
[1741610044809,0.05207757,128.38,128.33,7.7911]
[1741610045106,0.05207757,128.38,128.32,2.0769]
[1741610045704,7.7903,128.35,128.31,7.7924]
[1741610046012,31.45233225,128.42,128.32,7.7919]
[1741610046200,0.04900882,128.34,128.32,7.7919]
[1741610046401,31.45233225,128.42,128.3,33.42113225]
[1741610046612,0.05849927,128.34,128.33,7.7911]
[1741610046914,0.05910108,128.35,128.32,31.45233225]
[1741610047206,7.7889,128.38,128.33,1.9974]
[1741610047410,33.52163225,128.42,128.33,1.9974]
[1741610047613,1.94699446,128.41,128.33,1.9974]
[1741610047812,33.52163225,128.42,128.33,1.9974]
[1741610047813,7.7884,128.38,128.33,1.9974]
[1741610048211,0.05326926,128.37,128.34,0.05296288]
[1741610048411,0.05326926,128.37,128.33,1.9974]
[1741610048612,0.05326926,128.37,128.34,0.05957049]
[1741610049008,7.7902,128.35,128.34,0.05957049]
[1741610049215,0.05326926,128.37,128.34,0.05957049]
[1741610049415,7.7899,128.36,128.34,0.05957049]
[1741610049910,7.7902,128.35,128.34,0.05957049]
[1741610050314,2.1233,128.36,128.25,31.45233225]
[1741610050510,33.57563225,128.36,128.22,192.0]
[1741610050712,31.45233225,128.34,128.23,38.91187193]
[1741610050910,31.45233225,128.34,128.24,1.41873968]
[1741610051111,2.0087,128.33,128.24,1.41873968]
[1741610051510,0.05200486,128.3,128.26,7.7953]
[1741610051704,0.05200486,128.3,128.23,37.49313225]
[1741610051910,0.05200486,128.3,128.24,1.41877321]
[1741610052113,2.1233,128.36,128.26,31.45233225]
[1741610052314,15.5706,128.44,128.29,31.45233225]
[1741610052515,7.788,128.39,128.3,2.0294]
[1741610052812,1.9531,128.41,128.3,4.0897]
[1741610053012,31.45233225,128.4,128.33,7.7914]
[1741610053412,0.04923714,128.38,128.35,0.05245488]
[1741610053615,0.04923714,128.38,128.35,7.84235488]
[1741610053806,0.04923714,128.38,128.35,0.05245488]
[1741610054628,7.7894,128.37,128.35,0.05245488]
[1741610054819,0.04923714,128.38,128.35,0.05245488]
[1741610055712,7.83793714,128.38,128.35,0.05245488]
[1741610056318,7.83793714,128.38,128.35,7.84225488]
[1741610058122,0.04923714,128.38,128.35,0.05245488]
[1741610058314,0.04923714,128.38,128.37,7.789]
[1741610058814,2.0664,128.45,128.39,7.7875]
[1741610059010,4.0185,128.45,128.36,2.0663]
[1741610059222,7.7875,128.4,128.36,2.0663]
[1741610059423,4.0185,128.45,128.36,2.0663]
[1741610059819,7.7856,128.43,128.36,2.0663]
[1741610060123,0.05241509,128.42,128.4,7.7868]
[1741610060318,0.05241509,128.42,128.39,0.05426827]
[1741610060523,7.83871509,128.42,128.39,7.84186827]
[1741610060723,0.05241509,128.42,128.39,0.05426827]
[1741610061022,7.7871,128.41,128.39,0.05426827]
[1741610061723,0.05241509,128.42,128.39,0.05426827]
[1741610061915,7.7872,128.4,128.39,0.05426827]
[1741610062615,31.50474734,128.42,128.33,2.0389]
[1741610062815,31.45233225,128.42,128.33,2.0389]
[1741610063222,31.45233225,128.42,128.36,7.7892]
[1741610063922,31.45233225,128.42,128.33,2.0389]
[1741610063923,0.05065671,128.4,128.38,0.05805689]
[1741610064118,31.45233225,128.44,128.38,0.05805689]
[1741610064320,0.05377243,128.4,128.38,0.05805689]
[1741610064828,7.7878,128.39,128.38,0.05805689]
[1741610065024,0.05377243,128.4,128.38,0.05805689]
[1741610065425,7.84127243,128.4,128.38,0.05805689]
[1741610065720,0.05377243,128.4,128.38,0.05805689]
[1741610066221,31.50610468,128.4,128.38,0.05805689]
[1741610066431,7.7899,128.36,128.31,2.1265]
[1741610066625,31.50610468,128.4,128.32,7.7917]
[1741610066829,31.45233225,128.4,128.31,2.1265]
[1741610067218,31.45233225,128.37,128.29,2.1424]
[1741610067623,7.84116593,128.34,128.29,2.1424]
[1741610068122,7.7915,128.33,128.29,2.1424]
[1741610068323,0.04996593,128.34,128.29,9.9362]
[1741610068523,0.04996593,128.34,128.29,2.1424]
[1741610068731,7.84106593,128.34,128.29,2.1424]
[1741610069026,0.04996593,128.34,128.29,2.1424]
[1741610069530,0.04996593,128.34,128.31,7.7922]
[1741610069923,0.04996593,128.34,128.3,7.7932]
[1741610070125,0.04996593,128.34,128.29,2.1424]
[1741610071030,0.04996593,128.34,128.32,7.7916]
[1741610071231,0.04996593,128.34,128.29,2.1424]
[1741610071624,4.1029,128.39,128.3,1.41829755]
[1741610072032,4.1029,128.39,128.34,7.7902]
[1741610072635,7.7897,128.36,128.33,7.7912]
[1741610072835,7.7897,128.36,128.35,0.05110545]
[1741610073035,4.1029,128.39,128.29,2.1424]
[1741610073237,7.7907,128.35,128.34,0.05110545]
[1741610074130,7.7924,128.32,128.27,62.0]
[1741610074430,7.7924,128.32,128.22,256.96]
[1741610074431,31.45233225,128.31,128.22,256.96]
[1741610074634,31.45233225,128.31,128.23,1.41902604]
[1741610074937,7.7941,128.29,128.25,7.7957]
[1741610075131,7.7941,128.29,128.22,256.96]
[1741610075328,0.05906056,128.28,128.22,256.96]
[1741610075529,0.05906056,128.28,128.26,7.7956]
[1741610075829,0.05906056,128.28,128.22,256.96]
[1741610076031,7.85406056,128.28,128.22,256.96]
[1741610076237,0.05906056,128.28,128.23,1.41912647]
[1741610076537,0.05906056,128.28,128.26,7.7956]
[1741610077140,0.05906056,128.28,128.27,7.7951]
[1741610077435,0.05906056,128.28,128.24,62.0]
[1741610077632,0.05906056,128.28,128.25,7.7962]
[1741610077835,0.05906056,128.28,128.24,62.0]
[1741610078242,2.1158,128.36,128.25,31.45233225]
[1741610078536,2.1158,128.36,128.26,1.41877072]
[1741610078729,7.791,128.34,128.31,7.7926]
[1741610078928,2.1158,128.36,128.27,2.0608]
[1741610079131,2.1239,128.37,128.28,32.87085903]
[1741610079329,2.1239,128.37,128.28,31.45233225]
[1741610079632,0.05596793,128.34,128.31,0.05343939]
[1741610080239,0.05596793,128.34,128.33,7.7914]
[1741610081538,7.7881,128.39,128.36,7.7893]
[1741610082439,7.7881,128.39,128.35,7.79]
[1741610082641,7.7886,128.38,128.36,0.05264419]
[1741610083032,0.05985069,128.39,128.36,0.05264419]
[1741610083232,7.84805069,128.39,128.36,7.84224419]
[1741610083428,7.84805069,128.39,128.36,0.05264419]
[1741610083636,7.84805069,128.39,128.36,7.84224419]
[1741610084440,7.7884,128.38,128.36,0.05264419]
[1741610085838,0.05985069,128.39,128.36,0.05264419]
[1741610086042,0.05985069,128.39,128.28,31.45233225]
[1741610086231,31.45233225,128.37,128.29,5.50486988]
[1741610086431,31.45233225,128.37,128.29,11.8803]
[1741610086631,6.1943,128.36,128.29,11.8803]
[1741610086937,7.7909,128.34,128.31,7.7926]
[1741610087242,0.05687203,128.34,128.31,0.05541512]
[1741610088147,7.84797203,128.34,128.31,0.05541512]
[1741610088444,0.05687203,128.34,128.31,0.05541512]
[1741610088836,7.7917,128.33,128.31,0.05541512]
[1741610089147,0.05687203,128.34,128.31,0.05541512]
[1741610089344,7.792,128.32,128.31,0.05541512]
[1741610089543,0.05687203,128.34,128.31,0.05541512]
[1741610089844,7.84817203,128.34,128.31,7.84771512]
[1741610090048,0.05687203,128.34,128.31,0.05541512]
[1741610091048,0.05687203,128.34,128.33,7.7914]
[1741610092044,31.45233225,128.4,128.31,0.05541512]
[1741610092247,7.7887,128.38,128.35,7.7897]
[1741610092444,7.7887,128.38,128.32,2.0204]
[1741610092746,7.7887,128.38,128.35,7.7899]
[1741610093247,7.7891,128.37,128.35,0.05358274]
[1741610093437,0.05476183,128.38,128.35,0.05358274]
[1741610094240,7.7893,128.37,128.35,0.05358274]
[1741610094438,0.05476183,128.38,128.35,0.05358274]
[1741610094853,7.7893,128.37,128.35,7.84348274]
[1741610095152,0.05476183,128.38,128.35,0.05358274]
[1741610095647,7.7896,128.36,128.35,0.05358274]
[1741610095839,31.50709408,128.38,128.26,285.45233225]
[1741610096141,31.50709408,128.38,128.27,3.53976247]
[1741610096142,31.45233225,128.38,128.27,3.53976247]
[1741610096347,1.94744861,128.37,128.28,1.41826247]
[1741610096548,31.45233225,128.37,128.3,7.7929]
[1741610096747,7.9779946,128.36,128.27,2.1215]
[1741610096946,31.45233225,128.35,128.27,2.1215]
[1741610097149,0.05570316,128.33,128.3,0.05863399]
[1741610099259,7.7924,128.32,128.3,0.05863399]
[1741610099550,0.05570316,128.33,128.3,0.05863399]
[1741610100055,7.792,128.32,128.3,0.05863399]
[1741610100251,0.05570316,128.33,128.3,0.05863399]
[1741610100451,7.7926,128.31,128.3,0.05863399]
[1741610101054,0.05570316,128.33,128.3,0.05863399]
[1741610102254,0.05570316,128.33,128.3,7.85153399]
[1741610102552,0.05570316,128.33,128.3,0.05863399]
[1741610102753,7.7924,128.32,128.3,0.05863399]
[1741610102951,0.05570316,128.33,128.22,448.96]
[1741610103156,31.45233225,128.35,128.23,5.58838872]
[1741610103364,6.85812413,128.34,128.24,1.41888872]
[1741610103667,7.7923,128.32,128.29,7.7933]
[1741610103959,31.45233225,128.35,128.24,31.45233225]
[1741610104153,0.05650705,128.32,128.25,1.41884387]
[1741610104562,31.5088393,128.32,128.23,4.1695]
[1741610104762,31.45233225,128.32,128.23,4.1695]
[1741610105058,0.0594153,128.29,128.23,4.1695]
[1741610105259,0.0594153,128.29,128.24,1.419022]
[1741610105456,0.0594153,128.29,128.28,7.7945]
[1741610105849,0.0594153,128.29,128.27,7.7948]
[1741610106049,0.0594153,128.29,128.24,62.0]
[1741610106464,7.8533153,128.29,128.24,62.0]
[1741610106671,0.0594153,128.29,128.23,4.1695]
[1741610106960,7.7947,128.28,128.23,11.9666]
[1741610107363,0.0594153,128.29,128.23,4.1695]
[1741610107766,0.0594153,128.29,128.24,1.41901642]
[1741610107953,31.45233225,128.37,128.24,1.41901642]
[1741610108158,122.77880726,128.4,128.3,7.7927]
[1741610108360,6.06605125,128.36,128.28,31.45233225]
[1741610108663,6.06605125,128.36,128.29,3.44103314]
[1741610108864,6.06605125,128.36,128.29,2.0226]
[1741610109067,6.06605125,128.36,128.3,1.41831649]
[1741610109259,0.04940923,128.34,128.31,0.05149769]
[1741610109467,31.45233225,128.36,128.31,0.05149769]
[1741610109766,7.792,128.32,128.31,0.05149769]
[1741610110658,7.7918,128.33,128.31,0.05149769]
[1741610110861,0.05982192,128.34,128.31,0.05149769]
[1741610111059,0.05982192,128.34,128.31,7.84379769]
[1741610111468,0.05982192,128.34,128.31,0.05149769]
[1741610112770,0.05982192,128.34,128.33,7.7914]
[1741610113268,6.0609,128.4,128.31,0.05149769]
[1741610113468,6.91622112,128.39,128.35,7.7897]
[1741610113659,7.7885,128.38,128.35,7.7897]
[1741610113970,4.0513,128.43,128.31,2.1344]
[1741610114168,7.7897,128.36,128.31,2.1344]
[1741610114361,31.45233225,128.41,128.35,7.7898]
[1741610114761,0.05295191,128.39,128.35,7.7898]
[1741610114966,7.7889,128.38,128.37,0.0523826]
[1741610115562,7.84115191,128.39,128.37,0.0523826]
[1741610115771,0.05295191,128.39,128.38,7.7884]
[1741610116367,2.0013,128.47,128.42,7.7858]
[1741610116964,7.7844,128.45,128.42,7.7858]
[1741610117155,44.86256683,128.48,128.38,33.50453225]
[1741610117360,44.86256683,128.48,128.38,2.0522]
[1741610117361,6.91121383,128.47,128.38,2.0522]
[1741610117567,0.05290167,128.44,128.42,0.05678534]
[1741610117968,0.05290167,128.44,128.43,7.7854]
[1741610118371,0.05290167,128.44,128.42,0.05678534]
[1741610119567,7.7854,128.43,128.42,0.05678534]
[1741610119758,0.05290167,128.44,128.42,0.05678534]
[1741610120070,0.05290167,128.44,128.42,7.84238534]
[1741610120865,0.05290167,128.44,128.43,7.7854]
[1741610121076,1.9671,128.52,128.42,0.05678534]
[1741610121369,7.7825,128.48,128.45,7.7841]
[1741610121771,4.0092,128.52,128.41,2.1223]
[1741610122271,0.05142086,128.48,128.45,0.05049232]
[1741610123769,0.05142086,128.48,128.47,7.7829]
[1741610124166,0.05142086,128.48,128.45,0.05049232]
[1741610124470,0.05142086,128.48,128.46,7.7831]
[1741610124872,0.05142086,128.48,128.45,0.05049232]
[1741610125764,0.05142086,128.48,128.46,7.7832]
[1741610126264,0.05142086,128.48,128.45,0.05049232]
[1741610127562,2.0251,128.53,128.45,0.05049232]
[1741610127772,2.0251,128.53,128.44,31.45233225]
[1741610128272,7.7802,128.52,128.49,7.7817]
[1741610128674,7.7802,128.52,128.49,0.04935587]
[1741610128675,0.05086775,128.52,128.49,0.04935587]
[1741610129275,0.05086775,128.52,128.5,7.7808]
[1741610129469,0.05086775,128.52,128.49,0.04935587]
[1741610129669,7.83086775,128.52,128.49,0.04935587]
[1741610129865,7.83086775,128.52,128.49,7.83055587]
[1741610130071,0.05086775,128.52,128.49,0.04935587]
[1741610130267,0.05086775,128.52,128.51,7.7805]
[1741610132275,0.05086775,128.52,128.49,0.04935587]
[1741610133178,0.05086775,128.52,128.5,7.7808]
[1741610133976,0.05086775,128.52,128.49,0.04935587]
[1741610134877,0.05086775,128.52,128.5,7.7807]
[1741610135378,7.7808,128.51,128.49,0.04935587]
[1741610135678,0.05086775,128.52,128.49,0.04935587]
[1741610136780,0.05086775,128.52,128.51,7.7805]
[1741610141988,0.05086775,128.52,128.49,0.04935587]
[1741610142588,0.05086775,128.52,128.5,7.7806]
[1741610142788,0.05086775,128.52,128.49,0.04935587]
[1741610143289,0.05086775,128.52,128.51,7.7805]
[1741610143984,6.775e-05,128.52,128.51,7.7805]
[1741610145080,6.775e-05,128.52,128.51,69.7805]
[1741610145484,6.775e-05,128.52,128.51,89.38325092]
[1741610147988,6.775e-05,128.52,128.51,69.7805]
[1741610148192,6.775e-05,128.52,128.51,7.7805]
[1741610148891,6.775e-05,128.52,128.51,27.38325092]
[1741610149091,6.775e-05,128.52,128.51,7.7805]
[1741610150284,6.775e-05,128.52,128.49,0.04935587]
[1741610151094,6.775e-05,128.52,128.49,62.04935587]
[1741610151291,6.775e-05,128.52,128.51,7.7805]
[1741610151602,6.775e-05,128.52,128.49,0.04935587]
[1741610152996,19.60281867,128.52,128.49,0.04935587]
[1741610153297,19.60281867,128.52,128.47,256.72]
[1741610153298,7.782,128.49,128.46,7.7831]
[1741610153595,19.60275092,128.5,128.43,4.2373]
[1741610153800,19.60275092,128.5,128.41,19.60275092]
[1741610154002,19.60275092,128.48,128.4,256.64]
[1741610154298,7.784,128.46,128.42,7.7855]
[1741610154594,0.0545844,128.45,128.43,0.05057237]
[1741610154993,0.0545844,128.45,128.44,7.7848]
[1741610155791,19.60275092,128.5,128.44,7.7848]
[1741610156192,2.1095,128.51,128.43,19.60275092]
[1741610156400,7.7818,128.49,128.45,7.7837]
[1741610156697,7.7818,128.49,128.43,19.60275092]
[1741610156887,0.05741052,128.47,128.46,7.7832]
[1741610157092,2.1095,128.51,128.45,0.05643965]
[1741610157295,0.05534521,128.48,128.45,0.05643965]
[1741610157592,0.05534521,128.48,128.46,7.7835]
[1741610157797,0.05534521,128.48,128.45,0.05643965]
[1741610157993,4.521e-05,128.48,128.47,27.38565092]
[1741610158386,4.521e-05,128.48,128.47,7.7829]
[1741610158597,4.521e-05,128.48,128.45,19.65919057]
[1741610158901,4.521e-05,128.48,128.46,7.7832]
[1741610159297,4.521e-05,128.48,128.45,19.65919057]
[1741610160004,4.521e-05,128.48,128.45,0.05643965]
[1741610160205,7.78274521,128.48,128.45,0.05643965]
[1741610160403,4.521e-05,128.48,128.45,0.05643965]
[1741610160598,4.521e-05,128.48,128.45,1.47322223]
[1741610160800,4.521e-05,128.48,128.46,19.60275092]
[1741610161000,4.521e-05,128.48,128.47,7.7829]
[1741610161500,4.521e-05,128.48,128.45,0.05643965]
[1741610162595,4.521e-05,128.48,128.45,7.84033965]
[1741610162801,4.521e-05,128.48,128.45,0.05643965]
[1741610163098,4.521e-05,128.48,128.45,19.65919057]
[1741610163298,4.521e-05,128.48,128.47,7.7829]
[1741610164102,4.521e-05,128.48,128.47,27.38565092]
[1741610164902,4.521e-05,128.48,128.47,7.7829]
[1741610165604,4.521e-05,128.48,128.46,7.7831]
[1741610166204,4.521e-05,128.48,128.45,0.05643965]
[1741610166205,4.521e-05,128.48,128.47,7.7829]
[1741610167007,4.521e-05,128.48,128.47,27.38565092]
[1741610167903,4.521e-05,128.48,128.47,28.80211519]
[1741610168210,7.7791,128.54,128.47,21.01921519]
[1741610168398,7.7791,128.54,128.47,19.60275092]
[1741610168709,2.0763,128.55,128.49,19.60275092]
[1741610169299,0.05308959,128.53,128.52,7.7799]
[1741610169704,0.05308959,128.53,128.51,0.04933143]
[1741610170603,0.05308959,128.53,128.52,7.7799]
[1741610171202,0.05308959,128.53,128.51,0.04933143]
[1741610171506,0.05308959,128.53,128.51,7.82943143]
[1741610172114,0.05308959,128.53,128.52,7.7799]
[1741610172715,0.05308959,128.53,128.51,7.82943143]
[1741610173610,0.05308959,128.53,128.51,0.04933143]
[1741610173809,0.05308959,128.53,128.52,7.7799]
[1741610177116,0.05308959,128.53,128.51,69.82953143]
[1741610177619,0.05308959,128.53,128.51,7.82953143]
[1741610177918,0.05308959,128.53,128.52,7.7799]
[1741610179620,7.7771,128.57,128.55,7.778]
[1741610179820,5.9696,128.58,128.51,19.60275092]
[1741610180222,7.7778,128.56,128.51,19.60275092]
[1741610180423,5.9696,128.58,128.51,19.60275092]
[1741610180619,5.9696,128.58,128.52,62.0]
[1741610180922,0.05754754,128.56,128.54,7.7787]
[1741610181315,0.05754754,128.56,128.55,7.7781]
[1741610181521,0.05754754,128.56,128.53,19.65807763]
[1741610181721,0.05754754,128.56,128.53,0.05532671]
[1741610182519,0.05754754,128.56,128.54,7.7786]
[1741610182719,0.05754754,128.56,128.53,0.05532671]
[1741610183125,0.05754754,128.56,128.55,7.7781]
[1741610183518,1.9537,128.59,128.55,7.7781]
[1741610183823,228.77095706,128.68,128.55,19.60275092]
[1741610184014,4.8646565,128.62,128.55,19.60275092]
[1741610184215,13.7975752,128.62,128.59,7.7754]
[1741610184412,142.95418205,128.66,128.57,19.60275092]
[1741610184613,4.86338669,128.64,128.57,19.60275092]
[1741610184817,0.05164795,128.62,128.61,7.7741]
[1741610185018,0.05164795,128.62,128.6,0.05146082]
[1741610185421,0.05164795,128.62,128.6,7.82626082]
[1741610186324,0.05164795,128.62,128.6,0.05146082]
[1741610186522,7.82564795,128.62,128.6,0.05146082]
[1741610186727,0.05164795,128.62,128.6,0.05146082]
[1741610187427,0.05164795,128.62,128.61,7.7745]
[1741610188627,6.079,128.66,128.63,7.7728]
[1741610189228,13.8509,128.66,128.63,7.7728]
[1741610189534,1.9643,128.66,128.64,7.7726]
[1741610189828,9.79457073,128.66,128.63,0.05365283]
[1741610190027,2.02307073,128.66,128.63,0.05365283]
[1741610190216,0.05877073,128.66,128.63,0.05365283]
[1741610190417,10.76591071,128.71,128.69,7.7692]
[1741610190615,10.76591071,128.71,128.67,19.60275092]
[1741610190820,7.7699,128.69,128.63,19.60275092]
[1741610191027,7.7699,128.69,128.65,7.7716]
[1741610191225,10.76591071,128.71,128.65,7.7716]
[1741610191426,25.66255092,128.74,128.63,19.60275092]
[1741610191630,0.0494121,128.69,128.67,0.05561495]
[1741610191827,7.7694,128.7,128.67,0.05561495]
[1741610192031,0.05291065,128.69,128.67,0.05561495]
[1741610192925,0.05291065,128.69,128.67,7.82611495]
[1741610193433,0.05291065,128.69,128.68,7.7702]
[1741610196433,1.065e-05,128.69,128.68,7.7702]
[1741610199740,1.065e-05,128.69,128.67,0.05561495]
[1741610200038,7.7702,128.68,128.67,0.05561495]
[1741610200243,1.065e-05,128.69,128.67,0.05561495]
[1741610200740,1.065e-05,128.69,128.68,7.7702]
[1741610201437,1.065e-05,128.69,128.67,19.65836587]
[1741610201740,1.065e-05,128.69,128.68,19.60275092]
[1741610202038,1.065e-05,128.69,128.68,27.37295092]
[1741610202245,1.065e-05,128.69,128.68,7.7702]
[1741610202739,1.065e-05,128.69,128.67,0.05561495]
[1741610203144,7.76981065,128.69,128.67,0.05561495]
[1741610203445,1.065e-05,128.69,128.67,0.05561495]
[1741610203835,1.065e-05,128.69,128.67,7.82611495]
[1741610204029,1.065e-05,128.69,128.67,0.05561495]
[1741610204228,1.065e-05,128.69,128.68,7.7702]
[1741610205237,1.065e-05,128.69,128.68,27.37295092]
[1741610205639,1.065e-05,128.69,128.68,89.37295092]
[1741610208041,7.7656,128.76,128.68,83.01679141]
[1741610208243,19.60275092,128.78,128.7,19.60275092]
[1741610208639,7.7658,128.76,128.7,19.60275092]
[1741610209033,0.05347054,128.74,128.73,7.7669]
[1741610210341,0.05347054,128.74,128.72,0.05161424]
[1741610210645,7.82057054,128.74,128.72,0.05161424]
[1741610210834,0.05347054,128.74,128.72,0.05161424]
[1741610211240,7.7672,128.73,128.72,0.05161424]
[1741610211434,0.05347054,128.74,128.66,19.60275092]
[1741610211644,7.7688,128.71,128.68,7.7699]
[1741610212039,2.0437,128.73,128.66,19.60275092]
[1741610212239,9.8113,128.73,128.7,7.7688]
[1741610212647,0.05940584,128.73,128.7,0.04977721]
[1741610213539,7.7678,128.72,128.7,7.81857721]
[1741610214243,7.7684,128.71,128.7,0.04977721]
[1741610214544,2.0514,128.72,128.65,19.60275092]
[1741610214745,7.77,128.69,128.66,7.771]
[1741610214940,1.9752,128.71,128.65,19.60275092]
[1741610215336,7.7693,128.7,128.65,19.60275092]
[1741610215642,0.04964801,128.69,128.66,0.05912705]
[1741610215842,0.04964801,128.69,128.67,7.7703]
[1741610216343,7.81954801,128.69,128.66,7.83022705]
[1741610216746,0.04964801,128.69,128.66,0.05912705]
[1741610216944,7.7702,128.68,128.66,0.05912705]
[1741610217146,0.04964801,128.69,128.66,0.05912705]
[1741610217445,0.04964801,128.69,128.68,7.7702]
[1741610220645,0.04964801,128.69,128.66,0.05912705]
[1741610221556,7.7708,128.67,128.66,0.05912705]
[1741610222252,2.14974801,128.69,128.66,0.05912705]
[1741610222738,2.14974801,128.69,128.67,7.7708]
[1741610222938,9.91974801,128.69,128.67,7.7708]
[1741610223139,9.91974801,128.69,128.66,7.83032705]
[1741610224047,2.14974801,128.69,128.66,0.05912705]
[1741610224253,0.04964801,128.69,128.66,0.05912705]